fUST/lending_fUST_20250717
["ID","MTS","AMOUNT","RATE_DAILY","PERIOD"]
[372719400,1752747047821,-460.0,0.0001793,2]
[372719402,1752747047834,-460.0,0.0001793,2]
[372719404,1752747047845,-460.0,0.0001793,2]
[372719406,1752747047856,-458.56401688,0.0001793,2]
[372719409,1752747047867,-460.0,0.0001793,2]
[372719411,1752747047878,-460.0,0.0001793,2]
[372719413,1752747047891,-462.39356415,0.0001793,2]
[372719415,1752747047902,-460.0,0.0001793,2]
[372719417,1752747047914,-737.93,0.0001793,2]
[372719420,1752747047926,-488.81,0.0001793,2]
[372719422,1752747047938,-460.0,0.00017932,2]
[372719424,1752747047950,-460.0,0.00017932,2]
[372719427,1752747047963,-349.34495841,0.00017932,2]
[372719429,1752747047977,-460.0,0.00017932,2]
[372719431,1752747047989,-460.0,0.00017932,2]
[372719433,1752747048000,-460.0,0.00017932,2]
[372719436,1752747048011,-460.0,0.00017932,2]
[372719438,1752747048023,-460.0,0.00017932,2]
[372719440,1752747048033,-590.00082965,0.00017932,2]
[372719442,1752747048044,-460.0,0.00017932,2]
[372719444,1752747048056,-460.0,0.00017932,2]
[372719446,1752747048069,-460.0,0.00017932,2]
[372719449,1752747048081,-460.0,0.00017932,2]
[372719451,1752747048092,-460.0,0.00017932,2]
[372719453,1752747048104,-460.0,0.00017932,2]
[372719455,1752747048115,-460.0,0.00017932,2]
[372719457,1752747048125,-460.0,0.00017932,2]
[372719459,1752747048136,-460.0,0.00017932,2]
[372719462,1752747048147,-279.37013091,0.00017932,2]
[372719464,1752747048159,-460.0,0.00017932,2]
[372719466,1752747048171,-460.0,0.00017932,2]
[372719468,1752747048184,-460.0,0.00017932,2]
[372719470,1752747048198,-460.0,0.00017932,2]
[372719473,1752747048218,-460.0,0.00017932,2]
[372719475,1752747048233,-460.0,0.00017932,2]
[372719477,1752747048247,-460.0,0.00017932,2]
[372719479,1752747048259,-460.0,0.00017932,2]
[372719482,1752747048271,-364.28337965,0.00017932,2]
[372719484,1752747048283,-460.0,0.00017932,2]
[372719486,1752747048295,-460.0,0.00017932,2]
[372719488,1752747048307,-460.0,0.00017932,2]
[372719490,1752747048319,-460.0,0.00017932,2]
[372719492,1752747048329,-460.0,0.00017932,2]
[372719495,1752747048339,-460.0,0.00017932,2]
[372719497,1752747048350,-460.0,0.00017932,2]
[372719499,1752747048364,-460.0,0.00017932,2]
[372719501,1752747048377,-460.0,0.00017933,2]
[372719503,1752747048388,-460.0,0.00017933,2]
[372719505,1752747048399,-300.62344605,0.00017933,2]
[372719507,1752747048411,-462.16398892,0.00017933,2]
[372719510,1752747048423,-460.0,0.00017933,2]
[372719512,1752747048435,-460.0,0.00017933,2]
[372719514,1752747048447,-460.0,0.00017933,2]
[372719516,1752747048459,-460.0,0.00017933,2]
[372719518,1752747048471,-546.81645963,0.00017933,2]
[372719520,1752747048482,-460.0,0.00017933,2]
[372719523,1752747048493,-460.0,0.00017933,2]
[372719525,1752747048505,-445.74734365,0.00017933,2]
[372719527,1752747048515,-460.0,0.00017933,2]
[372719528,1752747048527,-460.0,0.00017933,2]
[372719530,1752747048538,-460.43479464,0.00017933,2]
[372719532,1752747048551,-460.0,0.00017933,2]
[372719534,1752747048561,-460.0,0.00017933,2]
[372719537,1752747048572,-460.0,0.00017933,2]
[372719538,1752747048583,-292.17819883,0.00017933,2]
[372719541,1752747048594,-460.0,0.00017933,2]
[372719543,1752747048605,-461.46693197,0.00017933,2]
[372719545,1752747048615,-500.0,0.00017933,2]
[372719547,1752747048626,-460.0,0.00017933,2]
[372719549,1752747048636,-460.0,0.00017933,2]
[372719551,1752747048647,-460.0,0.00017933,2]
[372719553,1752747048657,-460.0,0.00017933,2]
[372719555,1752747048668,-460.0,0.00017933,2]
[372719557,1752747048678,-460.0,0.00017933,2]
[372719559,1752747048689,-460.0,0.00017933,2]
[372719561,1752747048699,-460.0,0.00017935,2]
[372719563,1752747048712,-460.0,0.00017935,2]
[372719565,1752747048726,-161.60794482,0.00017935,2]
[372719567,1752747048738,-460.0,0.00017935,2]
[372719569,1752747048750,-485.04,0.00017935,2]
[372719572,1752747048761,-460.0,0.00017935,2]
[372719574,1752747048771,-460.0,0.00018034,2]
[372719576,1752747048782,-460.0,0.00018034,2]
[372719578,1752747048793,-460.0,0.00018034,2]
[372719580,1752747048803,-556.62516262,0.00018034,2]
[372719582,1752747048815,-462.5643148,0.00018034,2]
[372719584,1752747048826,-460.0,0.00018034,2]
[372719586,1752747048838,-460.0,0.00018034,2]
[372719588,1752747048850,-460.0,0.00018034,2]
[372719590,1752747048860,-460.0,0.00018034,2]
[372719593,1752747048871,-460.0,0.00018034,2]
[372719595,1752747048882,-460.0,0.00018034,2]
[372719597,1752747048893,-460.0,0.00018034,2]
[372719599,1752747048904,-460.0,0.00018034,2]
[372719601,1752747048915,-460.0,0.00018034,2]
[372719603,1752747048926,-460.0,0.00018034,2]
[372719605,1752747048937,-460.0,0.00018034,2]
[372719607,1752747048948,-460.0,0.00018034,2]
[372719609,1752747048960,-460.0,0.00018034,2]
[372719611,1752747048973,-573.3312053,0.00018034,2]
[372719613,1752747048985,-460.0,0.00018034,2]
[372719616,1752747048996,-460.0,0.00018034,2]
[372719618,1752747049007,-460.0,0.00018034,2]
[372719620,1752747049018,-460.0,0.00018034,2]
[372719622,1752747049028,-460.0,0.00018034,2]
[372719624,1752747049039,-460.0,0.00018034,2]
[372719626,1752747049050,-460.0,0.00018034,2]
[372719628,1752747049061,-460.0,0.00018034,2]
[372719630,1752747049072,-460.0,0.00018034,2]
[372719632,1752747049083,-460.0,0.00018034,2]
[372719634,1752747049094,-460.0,0.00018034,2]
[372719636,1752747049105,-178.54984239,0.00018034,2]
[372719638,1752747049116,-460.0,0.00018034,2]
[372719641,1752747049127,-460.0,0.00018034,2]
[372719643,1752747049137,-1784.47,0.00018102,2]
[372719644,1752747049148,-460.0,0.00018102,2]
[372719645,1752747049159,-460.0,0.00018103,2]
[372719646,1752747049171,-460.0,0.00018103,2]
[372719647,1752747049182,-757.5,0.00018103,2]
[372719648,1752747049193,-1723.86,0.00018104,2]
[372719649,1752747049204,-460.0,0.00018104,2]
[372719650,1752747049215,-1313.43,0.00018104,2]
[372719651,1752747049226,-1006.49,0.00018104,2]
[372719652,1752747049237,-460.0,0.00018104,2]
[372719653,1752747049248,-544.1,0.00018104,2]
[372719654,1752747049258,-460.0,0.00018104,2]
[372719655,1752747049269,-460.0,0.00018104,2]
[372719656,1752747049280,-583.18,0.00018104,2]
[372719657,1752747049292,-460.0,0.00018104,2]
[372719659,1752747049302,-460.0,0.00018105,2]
[372719661,1752747049313,-517.29962209,0.00018105,2]
[372719664,1752747049325,-460.0,0.00018105,2]
[372719666,1752747049335,-579.43765627,0.00018105,2]
[372719668,1752747049346,-460.0,0.00018105,2]
[372719670,1752747049357,-460.0,0.00018105,2]
[372719672,1752747049368,-475.11,0.00018105,2]
[372719674,1752747049378,-460.0,0.00018105,2]
[372719676,1752747049389,-403.60953974,0.00018105,2]
[372719678,1752747049399,-460.0,0.00018105,2]
[372719681,1752747049410,-460.0,0.00018105,2]
[372719683,1752747049421,-460.0,0.00018105,2]
[372719685,1752747049432,-460.0,0.00018105,2]
[372719687,1752747049442,-460.0,0.00018105,2]
[372719689,1752747049453,-460.0,0.00018105,2]
[372719691,1752747049464,-460.0,0.00018105,2]
[372719693,1752747049474,-460.0,0.00018105,2]
[372719695,1752747049485,-460.0,0.00018105,2]
[372719697,1752747049496,-460.0,0.00018105,2]
[372719700,1752747049507,-461.39857861,0.00018105,2]
[372719702,1752747049518,-327.48549571,0.00018105,2]
[372719704,1752747049528,-460.0,0.00018105,2]
[372719706,1752747049539,-598.51016383,0.00018105,2]
[372719708,1752747049550,-460.0,0.00018105,2]
[372719711,1752747049561,-460.0,0.00018105,2]
[372719731,1752747049571,-460.0,0.00018105,2]
[372719734,1752747049768,-460.0,0.00018105,2]
[372719737,1752747049784,-460.0,0.00018105,2]
[372719739,1752747049793,-460.0,0.00018105,2]
[372719741,1752747049803,-460.0,0.00018105,2]
[372719743,1752747049813,-460.0,0.00018105,2]
[372719745,1752747049822,-460.0,0.00018106,2]
[372719747,1752747049831,-460.0,0.00018106,2]
[372719749,1752747049841,-460.0,0.00018106,2]
[372719751,1752747049851,-460.0,0.00018106,2]
[372719753,1752747049861,-460.0,0.00018106,2]
[372719755,1752747049870,-460.0,0.00018106,2]
[372719757,1752747049879,-500.0,0.00018152,2]
[372719759,1752747049889,-150.69300627,0.00018203,2]
[372719761,1752747049898,-2132.86,0.00018203,2]
[372719763,1752747049907,-755.43,0.00018203,2]
[372719765,1752747049917,-824.81,0.00018203,2]
[372719767,1752747049926,-460.0,0.00018204,2]
[372719769,1752747049935,-460.0,0.00018204,2]
[372719771,1752747049945,-460.0,0.00018204,2]
[372719773,1752747049955,-460.0,0.00018204,2]
[372719775,1752747049965,-460.0,0.00018204,2]
[372719777,1752747049977,-460.0,0.00018204,2]
[372719779,1752747049986,-737.93,0.00018204,2]
[372719781,1752747049995,-488.81,0.00018204,2]
[372719783,1752747050005,-460.0,0.00018206,2]
[372719785,1752747050014,-462.75792507,0.00018206,2]
[372719787,1752747050024,-460.0,0.00018206,2]
[372719789,1752747050033,-460.0,0.00018206,2]
[372719791,1752747050043,-460.0,0.00018206,2]
[372719793,1752747050053,-460.0,0.00018206,2]
[372719795,1752747050063,-460.0,0.00018206,2]
[372719797,1752747050073,-460.0,0.00018206,2]
[372719799,1752747050082,-460.0,0.00018206,2]
[372719801,1752747050092,-460.0,0.00018206,2]
[372719804,1752747050102,-460.0,0.00018206,2]
[372719806,1752747050111,-460.0,0.00018206,2]
[372719808,1752747050121,-460.0,0.00018207,2]
[372719810,1752747050130,-535.8635729,0.00018207,2]
[372719812,1752747050139,-460.0,0.00018207,2]
[372719814,1752747050148,-460.0,0.00018207,2]
[372719816,1752747050157,-603.73116527,0.00018207,2]
[372719818,1752747050167,-460.0,0.00018207,2]
[372719820,1752747050176,-460.0,0.00018207,2]
[372719821,1752747050185,-460.0,0.00018207,2]
[372719824,1752747050195,-460.0,0.00018207,2]
[372719825,1752747050204,-460.0,0.00018209,2]
[372719827,1752747050213,-500.0,0.00018217,2]
[372719829,1752747050223,-460.0,0.00018253,2]
[372719831,1752747050232,-460.0,0.00018253,2]
[372719833,1752747050241,-460.0,0.00018253,2]
[372719835,1752747050251,-460.0,0.00018253,2]
[372719837,1752747050261,-460.0,0.00018253,2]
[372719840,1752747050270,-460.0,0.00018253,2]
[372719842,1752747050279,-460.0,0.00018253,2]
[372719844,1752747050289,-460.0,0.00018253,2]
[372719846,1752747050299,-460.0,0.00018253,2]
[372719848,1752747050308,-460.0,0.00018253,2]
[372719850,1752747050317,-1336.44,0.00018253,2]
[372719852,1752747050327,-460.0,0.00018253,2]
[372719854,1752747050336,-886.04,0.00018253,2]
[372719856,1752747050346,-371.14792971,0.00018253,2]
[372719859,1752747050364,-2089.65207029,0.00018253,2]
[372719861,1752747050374,-734.21,0.00018253,2]
[372719863,1752747050383,-470.58252024,0.00018308,2]
[372719865,1752747050393,-460.0,0.00018308,2]
[372719867,1752747050402,-460.0,0.00018308,2]
[372719869,1752747050411,-460.0,0.00018308,2]
[372719871,1752747050421,-460.0,0.00018308,2]
[372719873,1752747050430,-460.0,0.00018308,2]
[372719875,1752747050439,-460.0,0.00018308,2]
[372719877,1752747050450,-460.0,0.00018308,2]
[372719879,1752747050461,-460.0,0.00018308,2]
[372719881,1752747050470,-460.0,0.00018308,2]
[372719883,1752747050479,-460.0,0.00018308,2]
[372719885,1752747050488,-460.0,0.00018308,2]
[372719887,1752747050497,-460.0,0.00018308,2]
[372719889,1752747050506,-460.0,0.00018308,2]
[372719891,1752747050516,-460.0,0.00018308,2]
[372719893,1752747050525,-125.27018957,0.00018308,2]
[372720009,1752747051616,-334.72981043,0.00018308,2]
[372720011,1752747051628,-1784.47,0.00018376,2]
[372720013,1752747051640,-757.5,0.00018377,2]
[372720015,1752747051651,-1723.86,0.00018378,2]
[372720017,1752747051662,-460.0,0.00018378,2]
[372720019,1752747051672,-1313.43,0.00018378,2]
[372720021,1752747051682,-1006.49,0.00018378,2]
[372720023,1752747051691,-167.17687275,0.00018378,2]
[372720025,1752747051701,-544.1,0.00018378,2]
[372720027,1752747051713,-460.0,0.00018378,2]
[372720029,1752747051722,-460.0,0.00018378,2]
[372720031,1752747051732,-583.18,0.00018378,2]
[372720033,1752747051742,-460.0,0.00018378,2]
[372720036,1752747051752,-460.0,0.00018379,2]
[372720038,1752747051761,-283.35372384,0.00018379,2]
[372720040,1752747051771,-460.0,0.00018379,2]
[372720042,1752747051780,-460.0,0.00018379,2]
[372720044,1752747051790,-460.0,0.00018379,2]
[372720046,1752747051799,-460.0,0.00018379,2]
[372720048,1752747051809,-460.0,0.00018379,2]
[372720050,1752747051818,-460.0,0.00018379,2]
[372720052,1752747051828,-460.0,0.00018379,2]
[372720054,1752747051837,-460.0,0.00018379,2]
[372720056,1752747051847,-460.0,0.00018379,2]
[372720058,1752747051856,-460.0,0.00018379,2]
[372720060,1752747051866,-348.55,0.00018379,2]
[372720062,1752747051877,-460.0,0.00018379,2]
[372720064,1752747051886,-460.0,0.00018379,2]
[372720066,1752747051895,-460.0,0.00018379,2]
[372720068,1752747051905,-460.0,0.0001838,2]
[372720070,1752747051915,-460.0,0.0001838,2]
[372720072,1752747051924,-460.0,0.0001838,2]
[372720074,1752747051934,-4560.44169,0.0001838,2]
[372720076,1752747051943,-460.0,0.0001838,2]
[372720078,1752747051952,-460.0,0.0001838,2]
[372720080,1752747051965,-500.72343807,0.00018475,2]
[372720082,1752747051979,-460.0,0.00018477,2]
[372720084,1752747051988,-2132.86,0.00018477,2]
[372720086,1752747051998,-755.43,0.00018477,2]
[372720088,1752747052007,-824.81,0.00018477,2]
[372720090,1752747052017,-460.0,0.00018478,2]
[372720092,1752747052026,-460.0,0.00018478,2]
[372720094,1752747052035,-460.0,0.00018478,2]
[372720096,1752747052045,-460.0,0.00018478,2]
[372720098,1752747052054,-460.0,0.00018478,2]
[372720100,1752747052064,-460.0,0.00018478,2]
[372720102,1752747052074,-737.93,0.00018478,2]
[372720104,1752747052083,-488.81,0.00018478,2]
[372720106,1752747052093,-460.0,0.0001848,2]
[372720109,1752747052102,-460.0,0.0001848,2]
[372720111,1752747052111,-25.72421693,0.0001848,2]
[372720144,1752747052411,13793.32940895,0.00017731,2]
[372720147,1752747052435,20000.0,0.00017731,2]
[372720151,1752747052461,20000.0,0.00017731,2]
[372720154,1752747052489,20000.0,0.00017731,2]
[372720158,1752747052513,20000.0,0.00017731,2]
[372720161,1752747052536,20000.0,0.00017731,2]
[372720165,1752747052559,20000.0,0.00017731,2]
[372720168,1752747052581,20000.0,0.00017731,2]
[372720172,1752747052604,20000.0,0.00017731,2]
[372720175,1752747052627,20000.0,0.00017731,2]
[372720179,1752747052650,5834.36183015,0.00017731,2]
[372729899,1752747156423,330.86851875,0.00017729,2]
[372731376,1752747190028,150.0,0.0001418,2]
[372731377,1752747190378,195.51,0.00014855,2]
[372731378,1752747190796,293.26,0.0001553,2]
[372731379,1752747191303,391.01,0.00016206,2]
[372731380,1752747191719,488.77,0.00016881,2]
[372731381,1752747192152,586.52,0.00017556,2]
[372731389,1752747212285,11729.6996511,0.0001773,2]
[372731390,1752747212309,20000.0,0.0001773,2]
[372731391,1752747233481,-91300.0,0.0001773,2]
[372731393,1752747269170,150.0,0.00013816,2]
[372731394,1752747269590,150.0,0.00014474,2]
[372731396,1752747274790,212.88,0.00015132,2]
[372731397,1752747275215,283.84,0.0001579,2]
[372731398,1752747275608,354.81,0.00016447,2]
[372731399,1752747276043,385.8469327,0.00017105,2]
[372731400,1752747276070,39.9230673,0.00017105,2]
[372731401,1752747354155,150.0,0.00013915,2]
[372731402,1752747356957,150.0,0.00014578,2]
[372731403,1752747360191,198.13,0.00015241,2]
[372731404,1752747360730,264.18,0.00015903,2]
[372731405,1752747361131,330.22,0.00016566,2]
[372731406,1752747361624,396.26,0.00017229,2]
[372731408,1752747445231,150.0,0.00013924,2]
[372731409,1752747445765,150.0,0.00014587,2]
[372731410,1752747446075,150.0,0.0001525,2]
[372731411,1752747446517,188.38,0.00015913,2]
[372731412,1752747446959,235.48,0.00016576,2]
[372731413,1752747447368,282.57,0.00017239,2]
[372731414,1752747510156,8760.0,0.00016959,2]
[372731415,1752747520404,150.0,0.00013929,2]
[372731416,1752747520830,150.0,0.00014592,2]
[372731417,1752747521278,150.0,0.00015256,2]
[372731418,1752747521731,150.0,0.00015919,2]
[372731419,1752747522156,161.89,0.00016582,2]
[372731420,1752747522572,194.26,0.00017246,2]
[372731422,1752747560234,758.677334,0.00013699,2]
[372731423,1752747590206,460.0,0.00027397,120]
[372731424,1752747596567,150.0,0.00013811,2]
[372731425,1752747597000,150.0,0.00014469,2]
[372731426,1752747597466,150.0,0.00015127,2]
[372731427,1752747597904,150.0,0.00015784,2]
[372731428,1752747598803,150.0,0.00016442,2]
[372731429,1752747599205,150.0,0.000171,2]
[372731430,1752747653832,10940.0295987,0.00016822,2]
[372731431,1752747654015,13959.9704013,0.00016822,2]
[372731432,1752747669896,150.0,0.00013866,2]
[372731433,1752747670313,150.0,0.00014527,2]
[372731434,1752747697876,10556.4447277,0.00016822,2]
[372731436,1752747744345,150.0,0.00013754,2]
[372731437,1752747744746,33.584871,0.00014409,2]
[372731438,1752747744770,116.415129,0.00014409,2]
[372731439,1752747745156,150.0,0.00015064,2]
[372731440,1752747746054,150.0,0.00015719,2]
[372731441,1752747746656,150.0,0.00016374,2]
[372731443,1752747816497,150.0,0.00014119,2]
[372731444,1752747829787,1301.10354336,0.00017246,2]
[372731445,1752747831492,1951.65531505,0.00017246,2]
[372731446,1752747832094,1301.10354336,0.00017246,2]
[372731451,1752748013042,10000.0,0.00016818,2]
[372731456,1752748075775,150.0,0.00014698,2]
[372731457,1752748076236,150.0,0.00015398,2]
[372731458,1752748076684,150.0,0.00016098,2]
[372731459,1752748077087,150.0,0.00016798,2]
[372731460,1752748077677,150.0,0.00017498,2]
[372731467,1752748095081,414.56140898,0.00010618,2]
[372731469,1752748097080,8565.16106025,0.000125,2]
[372731470,1752748097104,2801.5538148,0.000125,2]
[372731472,1752748108793,277.45352444,0.00014114,2]
[372731474,1752748109648,166.0,0.00016817,2]
[372731475,1752748110670,282.29045522,0.0001,2]
[372731476,1752748116298,21472.70220554,0.00017,2]
[372731477,1752748116325,25000.0,0.00017,2]
[372731478,1752748116349,5064.02554682,0.00017,2]
[372731479,1752748120755,579.94779219,0.000149,2]
[372731480,1752748120986,1000.0,0.0001,2]
[372731482,1752748124475,16000.0,0.00015,2]
[372731483,1752748125172,210.47084292,0.00016,2]
[372731485,1752748126710,2145.55581807,0.0001,2]
[372731486,1752748126735,9618.95287745,0.0001,2]
[372731491,1752748132250,325.27588585,0.00017498,2]
[372731492,1752748133325,162.63794293,0.00017498,2]
[372731524,1752748172650,-2000.0,0.00025893,30]
[372731525,1752748172837,-2000.0,0.00025893,30]
[372731526,1752748172864,-1923.07696043,0.00025893,30]
[372731527,1752748172890,-1492.40893711,0.00025893,30]
[372731528,1752748172915,-1185.53751255,0.00025893,30]
[372731529,1752748172940,-244.44325378,0.00025893,30]
[372731530,1752748172965,-628.0445319,0.00025893,30]
[372731531,1752748172990,-1842.10739742,0.00025893,30]
[372731532,1752748173016,-1509.11345597,0.00025893,30]
[372731533,1752748173042,-2270.0,0.00025893,30]
[372731534,1752748173068,-2138.94987235,0.00025893,30]
[372731535,1752748173095,-507.0,0.00025893,30]
[372731536,1752748173121,-37377.83878623,0.00025893,30]
[372731537,1752748173147,-236.78649891,0.00025893,30]
[372731538,1752748173180,-2000.0,0.00025893,30]
[372731539,1752748173205,-2000.0,0.00025893,30]
[372731540,1752748173232,-337.799999,0.00025893,30]
[372731541,1752748173259,-1013.399999,0.00025893,30]
[372731542,1752748173285,-50000.0,0.00025893,30]
[372731543,1752748173312,-55768.75398536,0.00025893,30]
[372731555,1752748206522,150.0,0.00014835,2]
[372731585,1752748232726,-187.55348113,0.000177,2]
[372731587,1752748232735,-432.01335556,0.00017719,2]
[372731589,1752748232745,-8.08212745,0.0001773,2]
[372731591,1752748232754,-497.89,0.00017814,3]
[372731593,1752748232763,-1200.0,0.00017816,2]
[372731595,1752748232773,-500.0,0.00017817,2]
[372731597,1752748232782,-500.0,0.00017817,2]
[372731599,1752748232792,-500.0,0.00017817,2]
[372731601,1752748232801,-500.0,0.00017817,2]
[372731603,1752748232810,-500.0,0.00017817,2]
[372731605,1752748232819,-177.67725299,0.00017817,2]
[372731607,1752748232828,-2825.00192598,0.00017817,2]
[372731611,1752748232854,-500.0,0.00017817,2]
[372731613,1752748232864,-152.79831121,0.00017817,2]
[372731633,1752748238604,-500.0,0.00017817,2]
[372731634,1752748238614,-500.0,0.00017817,2]
[372731635,1752748238624,-500.0,0.00017817,2]
[372731636,1752748238634,-500.0,0.00017817,2]
[372731637,1752748238643,-500.0,0.00017817,2]
[372731638,1752748238653,-500.0,0.00017817,2]
[372731639,1752748238662,-500.0,0.00017817,2]
[372731640,1752748238672,-435.32978186,0.00017817,2]
[372731641,1752748238681,-500.0,0.00017817,2]
[372731643,1752748238691,-500.0,0.00017817,2]
[372731644,1752748238700,-500.0,0.00017817,2]
[372731645,1752748238710,-500.0,0.00017817,2]
[372731646,1752748238719,-500.0,0.00017817,2]
[372731647,1752748238728,-500.0,0.00017817,2]
[372731648,1752748238738,-505.16367341,0.00017817,2]
[372731649,1752748238748,-500.0,0.00017817,2]
[372731650,1752748238758,-500.0,0.00017817,2]
[372731651,1752748238767,-500.0,0.00017817,2]
[372731652,1752748238777,-500.0,0.00017817,2]
[372731653,1752748238787,-500.0,0.00017817,2]
[372731654,1752748238796,-500.0,0.00017817,2]
[372731655,1752748238806,-500.0,0.00017817,2]
[372731656,1752748238815,-500.0,0.00017817,2]
[372731657,1752748238825,-500.0,0.00017817,2]
[372731658,1752748238835,-500.0,0.00017817,2]
[372731659,1752748238844,-500.0,0.00017817,2]
[372731660,1752748238854,-500.0,0.00017817,2]
[372731661,1752748238863,-500.0,0.00017817,2]
[372731662,1752748238873,-500.0,0.00017817,2]
[372731663,1752748238883,-500.0,0.00017817,2]
[372731664,1752748238892,-500.0,0.00017817,2]
[372731665,1752748238902,-500.0,0.00017817,2]
[372731666,1752748238911,-500.0,0.00017817,2]
[372731667,1752748238921,-500.0,0.00017817,2]
[372731668,1752748238930,-500.0,0.00017817,2]
[372731669,1752748238939,-500.0,0.00017817,2]
[372731670,1752748238949,-500.0,0.00017817,2]
[372731671,1752748238959,-500.0,0.00017817,2]
[372731672,1752748238970,-500.0,0.00017817,2]
[372731673,1752748238980,-371.36478132,0.00017817,2]
[372731674,1752748238990,-500.0,0.00017817,2]
[372731675,1752748238999,-334.7667746,0.00017817,2]
[372731676,1752748239009,-500.0,0.00017817,2]
[372731677,1752748239018,-500.0,0.00017817,2]
[372731678,1752748239028,-500.0,0.00017817,2]
[372731679,1752748239048,-500.0,0.00017817,2]
[372731680,1752748239060,-500.0,0.00017817,2]
[372731681,1752748239071,-500.0,0.00017817,2]
[372731682,1752748239081,-500.0,0.00017817,2]
[372731683,1752748239091,-500.0,0.00017817,2]
[372731684,1752748239101,-500.0,0.00017817,2]
[372731685,1752748239111,-500.0,0.00017817,2]
[372731686,1752748239121,-500.0,0.00017817,2]
[372731687,1752748239131,-500.0,0.00017817,2]
[372731688,1752748239141,-500.0,0.00017817,2]
[372731689,1752748239152,-500.0,0.00017817,2]
[372731690,1752748239162,-623.21865963,0.00017817,2]
[372731691,1752748239172,-500.0,0.00017817,2]
[372731692,1752748239182,-632.46766164,0.00017817,2]
[372731693,1752748239192,-500.0,0.00017817,2]
[372731694,1752748239202,-500.0,0.00017817,2]
[372731695,1752748239212,-500.0,0.00017817,2]
[372731696,1752748239222,-500.0,0.00017817,2]
[372731697,1752748239232,-500.0,0.00017817,2]
[372731698,1752748239242,-500.0,0.00017817,2]
[372731699,1752748239252,-500.0,0.00017817,2]
[372731700,1752748239263,-500.0,0.00017817,2]
[372731701,1752748239273,-588.88086841,0.00017817,2]
[372731702,1752748239283,-500.0,0.00017817,2]
[372731703,1752748239293,-500.0,0.00017817,2]
[372731704,1752748239303,-500.0,0.00017817,2]
[372731705,1752748239316,-500.0,0.00017817,2]
[372731706,1752748239326,-500.0,0.00017817,2]
[372731707,1752748239336,-500.0,0.00017817,2]
[372731708,1752748239346,-500.0,0.00017817,2]
[372731709,1752748239357,-500.0,0.00017817,2]
[372731710,1752748239368,-500.0,0.00017817,2]
[372731711,1752748239378,-500.0,0.00017817,2]
[372731712,1752748239388,-500.0,0.00017817,2]
[372731713,1752748239398,-368.36095914,0.00017817,2]
[372731714,1752748239407,-500.0,0.00017817,2]
[372731715,1752748239417,-500.0,0.00017817,2]
[372731716,1752748239427,-500.0,0.00017817,2]
[372731717,1752748239437,-500.0,0.00017817,2]
[372731718,1752748239447,-500.0,0.00017817,2]
[372731719,1752748239457,-500.0,0.00017817,2]
[372731720,1752748239466,-500.0,0.00017817,2]